[Event "January 9 Late 2024"]
[Site "https://www.chess.com"]
[Date "2024.01.09"]
[Round "10"]
[White "Manolache, Marius"]
[Black "Santos Latasa, Jaime"]
[Result "0-1"]
[Board "26"]
[TimeControl "180+1"]
[WhiteFideId "1201530"]
[BlackFideId "2293307"]
[WhiteElo "2702"]
[BlackElo "2883"]
[WhiteTeam "ROU"]
[BlackTeam "ESP"]
[WhiteClock "0:00:23"]
[BlackClock "0:00:18"]

1. d4 {[%clk 0:03:00]}  Nf6 {[%clk 0:02:59]} 2. Nf3 {[%clk 0:03:00]}  g6 {[%clk 0:02:59]} 3. Nc3 {[%clk 0:02:59]}  d5 {[%clk 0:02:57]} 4. Bf4 {[%clk 0:02:59]}  Bg7 {[%clk 0:02:54]} 5. e3 {[%clk 0:02:59]}  O-O {[%clk 0:02:53]} 6. h4 {[%clk 0:02:59]}  c5 {[%clk 0:02:53]} 7. Be2 {[%clk 0:02:56]}  Nc6 {[%clk 0:02:47]} 8. Ne5 {[%clk 0:02:56]}  cxd4 {[%clk 0:02:44]} 9. Nxc6 {[%clk 0:02:55]}  bxc6 {[%clk 0:02:45]} 10. exd4 {[%clk 0:02:56]}  h5 {[%clk 0:02:44]} 11. Be5 {[%clk 0:02:54]}  Bf5 {[%clk 0:02:40]} 12. Qd2 {[%clk 0:02:50]}  Nd7 {[%clk 0:02:22]} 13. Bxg7 {[%clk 0:02:49]}  Kxg7 {[%clk 0:02:23]} 14. f3 {[%clk 0:02:38]}  e5 {[%clk 0:02:17]} 15. g4 {[%clk 0:02:32]}  hxg4 {[%clk 0:02:18]} 16. fxg4 {[%clk 0:02:32]}  Be6 {[%clk 0:02:18]} 17. h5 {[%clk 0:02:27]}  g5 {[%clk 0:02:07]} 18. h6+ {[%clk 0:02:20]}  Kh8 {[%clk 0:02:04]} 19. O-O-O {[%clk 0:02:15]}  e4 {[%clk 0:02:03]} 20. Rdf1 {[%clk 0:02:13]}  f6 {[%clk 0:02:01]} 21. Na4 {[%clk 0:02:09]}  Rb8 {[%clk 0:01:55]} 22. a3 {[%clk 0:02:08]}  Qc7 {[%clk 0:01:51]} 23. Rf2 {[%clk 0:02:03]}  Kh7 {[%clk 0:01:49]} 24. Rhf1 {[%clk 0:02:01]}  Kxh6 {[%clk 0:01:44]} 25. Nc5 {[%clk 0:02:01]}  Nxc5 {[%clk 0:01:43]} 26. dxc5 {[%clk 0:02:01]}  Kg7 {[%clk 0:01:35]} 27. Rh1 {[%clk 0:01:43]}  Qe5 {[%clk 0:01:34]} 28. c3 {[%clk 0:01:41]}  Rh8 {[%clk 0:01:30]} 29. Rff1 {[%clk 0:01:39]}  Rxh1 {[%clk 0:01:26]} 30. Rxh1 {[%clk 0:01:39]}  Rh8 {[%clk 0:01:27]} 31. Rxh8 {[%clk 0:01:38]}  Kxh8 {[%clk 0:01:28]} 32. Qe3 {[%clk 0:01:38]}  Kg7 {[%clk 0:01:20]} 33. a4 {[%clk 0:01:37]}  a5 {[%clk 0:01:14]} 34. Kd2 {[%clk 0:01:30]}  Kf7 {[%clk 0:01:13]} 35. Ke1 {[%clk 0:01:30]}  Ke7 {[%clk 0:01:01]} 36. Kd1 {[%clk 0:01:28]}  Kd7 {[%clk 0:00:57]} 37. Qh3 {[%clk 0:01:25]}  d4 {[%clk 0:00:42]} 38. Qh7+ {[%clk 0:01:25]}  Kd8 {[%clk 0:00:42]} 39. Qh8+ {[%clk 0:01:21]}  Kc7 {[%clk 0:00:39]} 40. Ba6 {[%clk 0:01:09]}  dxc3 {[%clk 0:00:35]} 41. bxc3 {[%clk 0:00:55]}  Bxg4+ {[%clk 0:00:33]} 42. Kc2 {[%clk 0:00:53]}  Bd7 {[%clk 0:00:32]} 43. Be2 {[%clk 0:00:36]}  e3 {[%clk 0:00:29]} 44. Qg7 {[%clk 0:00:34]}  Qxc5 {[%clk 0:00:25]} 45. Bg4 {[%clk 0:00:29]}  Qd6 {[%clk 0:00:24]} 46. Bxd7 {[%clk 0:00:28]}  Qd2+ {[%clk 0:00:19]} 47. Kb3 {[%clk 0:00:27]}  Qxd7 {[%clk 0:00:20]} 48. Qxf6 {[%clk 0:00:27]}  Kb7 {[%clk 0:00:18]} 49. Qe5 {[%clk 0:00:23]}  Qd5+ {[%clk 0:00:18]} 0-1

[Event "January 9 Late 2024"]
[Site "https://www.chess.com"]
[Date "2024.01.09"]
[Round "10"]
[White "Goryachkina, Aleksandra"]
[Black "Rustemov, Alexander"]
[Result "1-0"]
[Board "30"]
[TimeControl "180+1"]
[WhiteFideId "4147103"]
[BlackFideId "4119002"]
[WhiteElo "2661"]
[BlackElo "2814"]
[WhiteTeam "FID"]
[BlackTeam "RUS"]
[WhiteClock "0:01:40"]
[BlackClock "0:00:56"]

1. e4 {[%clk 0:03:00]}  e6 {[%clk 0:02:58]} 2. d4 {[%clk 0:03:00]}  d5 {[%clk 0:02:59]} 3. Nd2 {[%clk 0:03:00]}  b6 {[%clk 0:02:55]} 4. exd5 {[%clk 0:02:56]}  Qxd5 {[%clk 0:02:47]} 5. Ngf3 {[%clk 0:02:54]}  Bb7 {[%clk 0:02:46]} 6. Bc4 {[%clk 0:02:53]}  Qd8 {[%clk 0:02:42]} 7. O-O {[%clk 0:02:51]}  Nf6 {[%clk 0:02:42]} 8. Bb5+ {[%clk 0:02:38]}  Nbd7 {[%clk 0:02:37]} 9. Ne5 {[%clk 0:02:37]}  a6 {[%clk 0:02:37]} 10. Bc6 {[%clk 0:02:29]}  Qc8 {[%clk 0:02:37]} 11. Qf3 {[%clk 0:02:16]}  Bxc6 {[%clk 0:02:29]} 12. Qxc6 {[%clk 0:02:16]}  Rb8 {[%clk 0:02:15]} 13. Re1 {[%clk 0:02:07]}  Be7 {[%clk 0:02:13]} 14. Nxf7 {[%clk 0:01:47]}  Kxf7 {[%clk 0:01:27]} 15. Qxe6+ {[%clk 0:01:47]}  Kg6 {[%clk 0:01:27]} 16. Nf3 {[%clk 0:01:47]}  Bd6 {[%clk 0:01:07]} 17. Nh4+ {[%clk 0:01:41]}  Kh5 {[%clk 0:00:56]} 18. Qf5+ {[%clk 0:01:40]} 1-0

[Event "January 9 Late 2024"]
[Site "https://www.chess.com"]
[Date "2024.01.09"]
[Round "10"]
[White "Velikanov, Alexander"]
[Black "Al-Tarboush, Ward"]
[Result "1-0"]
[Board "31"]
[TimeControl "180+1"]
[WhiteFideId "2039290"]
[BlackFideId "7601450"]
[WhiteElo "2812"]
[BlackElo "2635"]
[WhiteTeam "USA"]
[BlackTeam "NOR"]
[WhiteClock "0:00:18"]
[BlackClock "0:00:17"]

1. e4 {[%clk 0:03:00]}  e6 {[%clk 0:03:00]} 2. d4 {[%clk 0:03:00]}  d5 {[%clk 0:03:00]} 3. exd5 {[%clk 0:03:01]}  exd5 {[%clk 0:03:00]} 4. h3 {[%clk 0:03:02]}  Bd6 {[%clk 0:02:59]} 5. c4 {[%clk 0:03:01]}  Nf6 {[%clk 0:02:58]} 6. c5 {[%clk 0:03:01]}  Be7 {[%clk 0:02:58]} 7. Nf3 {[%clk 0:03:01]}  b6 {[%clk 0:02:58]} 8. Be3 {[%clk 0:02:59]}  bxc5 {[%clk 0:02:57]} 9. dxc5 {[%clk 0:02:59]}  c6 {[%clk 0:02:58]} 10. Qc2 {[%clk 0:02:58]}  Nbd7 {[%clk 0:02:56]} 11. Nbd2 {[%clk 0:02:55]}  Qa5 {[%clk 0:02:55]} 12. Nd4 {[%clk 0:02:36]}  Qxc5 {[%clk 0:02:41]} 13. Qb3 {[%clk 0:02:19]}  Rb8 {[%clk 0:02:37]} 14. Qa4 {[%clk 0:02:15]}  Rb4 {[%clk 0:02:31]} 15. Qxc6 {[%clk 0:01:50]}  Rxd4 {[%clk 0:02:31]} 16. Qxc5 {[%clk 0:01:43]}  Bxc5 {[%clk 0:02:32]} 17. Rc1 {[%clk 0:01:43]}  Rxd2 {[%clk 0:02:17]} 18. Bxd2 {[%clk 0:01:05]}  O-O {[%clk 0:02:16]} 19. Bd3 {[%clk 0:00:59]}  Re8+ {[%clk 0:02:16]} 20. Kf1 {[%clk 0:00:57]}  Ne5 {[%clk 0:02:16]} 21. Bb5 {[%clk 0:00:55]}  Bd7 {[%clk 0:01:40]} 22. Rxc5 {[%clk 0:00:43]}  Ne4 {[%clk 0:01:41]} 23. Bxd7 {[%clk 0:00:35]}  Nxd2+ {[%clk 0:01:40]} 24. Kg1 {[%clk 0:00:34]}  Rd8 {[%clk 0:00:55]} 25. Rc8 {[%clk 0:00:33]}  Rxc8 {[%clk 0:00:52]} 26. Bxc8 {[%clk 0:00:34]}  Nd3 {[%clk 0:00:48]} 27. Kh2 {[%clk 0:00:23]}  Nxf2 {[%clk 0:00:47]} 28. Rc1 {[%clk 0:00:21]}  g6 {[%clk 0:00:44]} 29. Bb7 {[%clk 0:00:18]}  d4 {[%clk 0:00:33]} 30. Rc2 {[%clk 0:00:18]}  Nfe4 {[%clk 0:00:29]} 31. Bxe4 {[%clk 0:00:19]}  Nxe4 {[%clk 0:00:29]} 32. Rc4 {[%clk 0:00:20]}  Kg7 {[%clk 0:00:20]} 33. Rxd4 {[%clk 0:00:20]}  Nc5 {[%clk 0:00:20]} 34. Rc4 {[%clk 0:00:19]}  Ne6 {[%clk 0:00:17]} 35. Ra4 {[%clk 0:00:18]} 1-0

[Event "January 9 Late 2024"]
[Site "https://www.chess.com"]
[Date "2024.01.09"]
[Round "10"]
[White "Tristan, Leonardo"]
[Black "Sowa, Ryan"]
[Result "1-0"]
[Board "34"]
[TimeControl "180+1"]
[WhiteFideId "113816"]
[BlackFideId "30901693"]
[WhiteElo "2764"]
[BlackElo "2613"]
[WhiteTeam "ARG"]
[BlackTeam "USA"]
[WhiteClock "0:00:03"]
[BlackClock "0:00:51"]

1. d4 {[%clk 0:03:00]}  b6 {[%clk 0:03:00]} 2. e4 {[%clk 0:03:00]}  Bb7 {[%clk 0:03:01]} 3. Bd3 {[%clk 0:03:00]}  e6 {[%clk 0:03:01]} 4. Nf3 {[%clk 0:03:00]}  d5 {[%clk 0:03:02]} 5. exd5 {[%clk 0:02:56]}  Qxd5 {[%clk 0:03:02]} 6. O-O {[%clk 0:02:52]}  Qh5 {[%clk 0:02:59]} 7. Be2 {[%clk 0:02:40]}  Qd5 {[%clk 0:02:58]} 8. Nc3 {[%clk 0:02:31]}  Qd8 {[%clk 0:02:58]} 9. Ne5 {[%clk 0:02:31]}  Nf6 {[%clk 0:02:56]} 10. Bf3 {[%clk 0:02:30]}  c6 {[%clk 0:02:55]} 11. a4 {[%clk 0:02:21]}  Be7 {[%clk 0:02:51]} 12. a5 {[%clk 0:02:21]}  bxa5 {[%clk 0:02:51]} 13. Nc4 {[%clk 0:02:13]}  Nd5 {[%clk 0:02:45]} 14. Ne4 {[%clk 0:01:45]}  O-O {[%clk 0:02:42]} 15. Nxa5 {[%clk 0:01:35]}  Bc8 {[%clk 0:02:42]} 16. c3 {[%clk 0:01:09]}  Bd7 {[%clk 0:02:24]} 17. Re1 {[%clk 0:01:02]}  Qc8 {[%clk 0:02:21]} 18. Nc5 {[%clk 0:01:00]}  Na6 {[%clk 0:02:13]} 19. Nd3 {[%clk 0:00:47]}  Rd8 {[%clk 0:02:04]} 20. Nc4 {[%clk 0:00:44]}  Nac7 {[%clk 0:01:59]} 21. Nce5 {[%clk 0:00:37]}  Be8 {[%clk 0:01:59]} 22. Be4 {[%clk 0:00:35]}  g6 {[%clk 0:01:49]} 23. Bh6 {[%clk 0:00:29]}  f6 {[%clk 0:01:40]} 24. Nc4 {[%clk 0:00:29]}  Bf7 {[%clk 0:01:35]} 25. Bf3 {[%clk 0:00:27]}  a5 {[%clk 0:01:31]} 26. Qe2 {[%clk 0:00:26]}  a4 {[%clk 0:01:25]} 27. h4 {[%clk 0:00:26]}  Qa6 {[%clk 0:01:25]} 28. Nc5 {[%clk 0:00:26]}  Bxc5 {[%clk 0:01:22]} 29. dxc5 {[%clk 0:00:27]}  e5 {[%clk 0:01:20]} 30. Nd6 {[%clk 0:00:18]}  Qxe2 {[%clk 0:01:17]} 31. Rxe2 {[%clk 0:00:19]}  Be6 {[%clk 0:01:16]} 32. Bd2 {[%clk 0:00:15]}  Ne8 {[%clk 0:01:14]} 33. c4 {[%clk 0:00:14]}  Ne7 {[%clk 0:01:13]} 34. Bb4 {[%clk 0:00:09]}  Ra6 {[%clk 0:01:06]} 35. Ba3 {[%clk 0:00:08]}  Nxd6 {[%clk 0:01:06]} 36. cxd6 {[%clk 0:00:09]}  Nf5 {[%clk 0:01:07]} 37. c5 {[%clk 0:00:03]}  Nd4 {[%clk 0:01:07]} 38. Rd2 {[%clk 0:00:03]}  Nb3 {[%clk 0:01:08]} 39. Rad1 {[%clk 0:00:03]}  Nxd2 {[%clk 0:01:08]} 40. Rxd2 {[%clk 0:00:04]}  Bd5 {[%clk 0:01:07]} 41. Rxd5 {[%clk 0:00:02]}  cxd5 {[%clk 0:01:08]} 42. Bxd5+ {[%clk 0:00:03]}  Kf8 {[%clk 0:01:04]} 43. c6 {[%clk 0:00:04]}  Ke8 {[%clk 0:00:55]} 44. c7 {[%clk 0:00:04]}  Rc8 {[%clk 0:00:53]} 45. Be6 {[%clk 0:00:02]}  Rxc7 {[%clk 0:00:53]} 46. dxc7 {[%clk 0:00:03]}  Rc6 {[%clk 0:00:51]} 47. c8=Q+ {[%clk 0:00:03]} 1-0

[Event "January 9 Late 2024"]
[Site "https://www.chess.com"]
[Date "2024.01.09"]
[Round "10"]
[White "Tan, Ralph"]
[Black "Smirnov, Anton"]
[Result "0-1"]
[Board "38"]
[TimeControl "180+1"]
[WhiteFideId "30966590"]
[BlackFideId "3208923"]
[WhiteElo "2558"]
[BlackElo "2913"]
[WhiteTeam "USA"]
[BlackTeam "AUS"]
[WhiteClock "0:00:00"]
[BlackClock "0:01:11"]

1. Nf3 {[%clk 0:03:00]}  d5 {[%clk 0:03:00]} 2. g3 {[%clk 0:03:01]}  g6 {[%clk 0:02:59]} 3. Bg2 {[%clk 0:03:00]}  Bg7 {[%clk 0:03:00]} 4. d4 {[%clk 0:02:54]}  Nf6 {[%clk 0:03:00]} 5. O-O {[%clk 0:02:52]}  c6 {[%clk 0:03:00]} 6. c4 {[%clk 0:02:52]}  dxc4 {[%clk 0:03:00]} 7. a4 {[%clk 0:02:53]}  Ne4 {[%clk 0:02:57]} 8. Na3 {[%clk 0:02:48]}  Nd6 {[%clk 0:02:57]} 9. Ne5 {[%clk 0:02:40]}  Be6 {[%clk 0:02:54]} 10. Qc2 {[%clk 0:02:36]}  Na6 {[%clk 0:02:54]} 11. Bd2 {[%clk 0:02:26]}  O-O {[%clk 0:02:52]} 12. Rfd1 {[%clk 0:02:26]}  c5 {[%clk 0:02:44]} 13. Nexc4 {[%clk 0:02:13]}  cxd4 {[%clk 0:02:40]} 14. Nxd6 {[%clk 0:02:12]}  Qxd6 {[%clk 0:02:14]} 15. Bxb7 {[%clk 0:02:11]}  Rad8 {[%clk 0:02:07]} 16. Nb5 {[%clk 0:01:45]}  Qb6 {[%clk 0:02:05]} 17. Bxa6 {[%clk 0:01:18]}  Qxa6 {[%clk 0:02:03]} 18. Rac1 {[%clk 0:01:17]}  Rc8 {[%clk 0:02:00]} 19. Qe4 {[%clk 0:01:08]}  Qxa4 {[%clk 0:01:57]} 20. Nc7 {[%clk 0:01:04]}  Bb3 {[%clk 0:01:50]} 21. Re1 {[%clk 0:00:58]}  Qd7 {[%clk 0:01:49]} 22. Na6 {[%clk 0:00:54]}  Bd5 {[%clk 0:01:46]} 23. Qd3 {[%clk 0:00:47]}  Ba8 {[%clk 0:01:44]} 24. f3 {[%clk 0:00:42]}  h5 {[%clk 0:01:41]} 25. Nc5 {[%clk 0:00:41]}  Qd5 {[%clk 0:01:40]} 26. b4 {[%clk 0:00:39]}  h4 {[%clk 0:01:40]} 27. Kg2 {[%clk 0:00:18]}  a5 {[%clk 0:01:37]} 28. Na6 {[%clk 0:00:15]}  axb4 {[%clk 0:01:29]} 29. Nxb4 {[%clk 0:00:13]}  Qd7 {[%clk 0:01:27]} 30. Na6 {[%clk 0:00:09]}  h3+ {[%clk 0:01:21]} 31. Kg1 {[%clk 0:00:09]}  Be5 {[%clk 0:01:16]} 32. Nc5 {[%clk 0:00:08]}  Qd6 {[%clk 0:01:14]} 33. Ne4 {[%clk 0:00:08]}  Bxe4 {[%clk 0:01:14]} 34. Qxe4 {[%clk 0:00:08]}  Bxg3 {[%clk 0:01:13]} 35. f4 {[%clk 0:00:09]}  Bxe1 {[%clk 0:01:13]} 36. Rxe1 {[%clk 0:00:09]}  Qd7 {[%clk 0:01:12]} 37. Kh1 {[%clk 0:00:07]}  Rc2 {[%clk 0:01:11]} 38. Qxc2 {[%clk 0:00:06]}  Qd5+ {[%clk 0:01:10]} 39. e4 {[%clk 0:00:00]}  dxe3+ {[%clk 0:01:11]} 0-1

[Event "January 9 Late 2024"]
[Site "https://www.chess.com"]
[Date "2024.01.09"]
[Round "10"]
[White "Garakov, Mikhael"]
[Black "Christiansen, Johan-Sebastian"]
[Result "0-1"]
[Board "40"]
[TimeControl "180+1"]
[WhiteFideId "4169034"]
[BlackFideId "1512668"]
[WhiteElo "2634"]
[BlackElo "2893"]
[WhiteTeam "RUS"]
[BlackTeam "NOR"]
[WhiteClock "0:00:00"]
[BlackClock "0:00:11"]

1. e4 {[%clk 0:03:00]}  e5 {[%clk 0:02:50]} 2. Nf3 {[%clk 0:03:00]}  Nc6 {[%clk 0:02:47]} 3. Bb5 {[%clk 0:03:00]}  f5 {[%clk 0:02:47]} 4. Nc3 {[%clk 0:02:59]}  fxe4 {[%clk 0:02:47]} 5. Nxe4 {[%clk 0:02:59]}  d5 {[%clk 0:02:48]} 6. Nxe5 {[%clk 0:02:53]}  dxe4 {[%clk 0:02:48]} 7. Nxc6 {[%clk 0:02:52]}  Qd5 {[%clk 0:02:48]} 8. c4 {[%clk 0:02:12]}  Qd6 {[%clk 0:02:39]} 9. Nxa7+ {[%clk 0:02:02]}  Bd7 {[%clk 0:02:38]} 10. Bxd7+ {[%clk 0:02:01]}  Qxd7 {[%clk 0:02:39]} 11. Nb5 {[%clk 0:02:01]}  Nf6 {[%clk 0:02:39]} 12. O-O {[%clk 0:01:54]}  c6 {[%clk 0:02:39]} 13. Nc3 {[%clk 0:01:51]}  Bc5 {[%clk 0:02:39]} 14. d4 {[%clk 0:01:47]}  exd3 {[%clk 0:02:39]} 15. Re1+ {[%clk 0:01:38]}  Kf7 {[%clk 0:02:39]} 16. Be3 {[%clk 0:01:37]}  Bxe3 {[%clk 0:02:39]} 17. Rxe3 {[%clk 0:01:37]}  Rad8 {[%clk 0:02:40]} 18. Qd2 {[%clk 0:01:33]}  Rhe8 {[%clk 0:02:40]} 19. Rf3 {[%clk 0:01:15]}  Kg8 {[%clk 0:02:07]} 20. Rd1 {[%clk 0:01:14]}  Re2 {[%clk 0:02:07]} 21. Qg5 {[%clk 0:00:53]}  Qe6 {[%clk 0:01:49]} 22. h3 {[%clk 0:00:51]}  h6 {[%clk 0:01:32]} 23. Qg6 {[%clk 0:00:41]}  Re1+ {[%clk 0:01:30]} 24. Kh2 {[%clk 0:00:31]}  Rxd1 {[%clk 0:01:19]} 25. Nxd1 {[%clk 0:00:30]}  d2 {[%clk 0:01:17]} 26. Rd3 {[%clk 0:00:24]}  Qe5+ {[%clk 0:01:02]} 27. g3 {[%clk 0:00:24]}  Rxd3 {[%clk 0:00:53]} 28. Qxd3 {[%clk 0:00:25]}  Qe1 {[%clk 0:00:54]} 29. Qf3 {[%clk 0:00:10]}  Ne4 {[%clk 0:00:49]} 30. Kg2 {[%clk 0:00:09]}  Ng5 {[%clk 0:00:47]} 31. Qg4 {[%clk 0:00:08]}  Qe5 {[%clk 0:00:27]} 32. h4 {[%clk 0:00:08]}  Ne6 {[%clk 0:00:24]} 33. Qf3 {[%clk 0:00:07]}  Nd4 {[%clk 0:00:22]} 34. Qe3 {[%clk 0:00:08]}  Qxe3 {[%clk 0:00:11]} 35. fxe3 {[%clk 0:00:07]}  Nf5 {[%clk 0:00:11]} 36. Kf3 {[%clk 0:00:06]}  Kf7 {[%clk 0:00:11]} 37. e4 {[%clk 0:00:06]}  Nd6 {[%clk 0:00:11]} 38. b3 {[%clk 0:00:06]}  Ke6 {[%clk 0:00:12]} 39. Ke3 {[%clk 0:00:06]}  Ke5 {[%clk 0:00:12]} 40. Kxd2 {[%clk 0:00:04]}  Nxe4+ {[%clk 0:00:13]} 41. Ke3 {[%clk 0:00:05]}  Nxg3 {[%clk 0:00:14]} 42. Kf3 {[%clk 0:00:05]}  Nf5 {[%clk 0:00:13]} 43. Kg4 {[%clk 0:00:05]}  g6 {[%clk 0:00:13]} 44. Nc3 {[%clk 0:00:04]}  Ne3+ {[%clk 0:00:12]} 45. Kf3 {[%clk 0:00:04]}  Nf5 {[%clk 0:00:13]} 46. Kg4 {[%clk 0:00:04]}  Ne3+ {[%clk 0:00:12]} 47. Kf3 {[%clk 0:00:04]}  Nc2 {[%clk 0:00:13]} 48. Ne4 {[%clk 0:00:03]}  Nd4+ {[%clk 0:00:12]} 49. Ke3 {[%clk 0:00:03]}  Nf5+ {[%clk 0:00:13]} 50. Kd3 {[%clk 0:00:04]}  Nxh4 {[%clk 0:00:13]} 51. Nc5 {[%clk 0:00:00]}  g5 {[%clk 0:00:11]} 0-1

[Event "January 9 Late 2024"]
[Site "https://www.chess.com"]
[Date "2024.01.09"]
[Round "10"]
[White "Pham, Le Thao Nguyen"]
[Black "Timmermans, Mark"]
[Result "0-1"]
[Board "44"]
[TimeControl "180+1"]
[WhiteFideId "12401226"]
[BlackFideId "1026399"]
[WhiteElo "2588"]
[BlackElo "2744"]
[WhiteTeam "VIE"]
[BlackTeam "NED"]
[WhiteClock "0:00:00"]
[BlackClock "0:00:16"]

1. d4 {[%clk 0:03:00]}  Nf6 {[%clk 0:02:58]} 2. Nf3 {[%clk 0:03:00]}  e6 {[%clk 0:02:57]} 3. Bf4 {[%clk 0:03:00]}  d5 {[%clk 0:02:57]} 4. e3 {[%clk 0:03:00]}  Bd6 {[%clk 0:02:57]} 5. Bg3 {[%clk 0:03:01]}  O-O {[%clk 0:02:58]} 6. Nbd2 {[%clk 0:03:01]}  b6 {[%clk 0:02:58]} 7. Ne5 {[%clk 0:02:59]}  Bb7 {[%clk 0:02:58]} 8. Bh4 {[%clk 0:02:59]}  Nbd7 {[%clk 0:02:51]} 9. f4 {[%clk 0:02:59]}  Be7 {[%clk 0:02:51]} 10. Bd3 {[%clk 0:02:54]}  Ne4 {[%clk 0:02:51]} 11. Bxe7 {[%clk 0:02:55]}  Qxe7 {[%clk 0:02:51]} 12. O-O {[%clk 0:02:55]}  f6 {[%clk 0:02:51]} 13. Nxd7 {[%clk 0:02:53]}  Qxd7 {[%clk 0:02:52]} 14. Nf3 {[%clk 0:02:50]}  a5 {[%clk 0:02:45]} 15. Qe2 {[%clk 0:02:47]}  Nd6 {[%clk 0:02:39]} 16. c3 {[%clk 0:02:44]}  a4 {[%clk 0:02:34]} 17. a3 {[%clk 0:02:44]}  Bc6 {[%clk 0:02:34]} 18. Qc2 {[%clk 0:02:30]}  g6 {[%clk 0:02:25]} 19. Nd2 {[%clk 0:02:28]}  Bb5 {[%clk 0:02:24]} 20. c4 {[%clk 0:02:28]}  Bxc4 {[%clk 0:02:24]} 21. Nxc4 {[%clk 0:02:28]}  dxc4 {[%clk 0:02:22]} 22. Bxc4 {[%clk 0:02:28]}  Nxc4 {[%clk 0:02:16]} 23. Qxc4 {[%clk 0:02:28]}  Rfc8 {[%clk 0:02:16]} 24. f5 {[%clk 0:02:00]}  gxf5 {[%clk 0:01:51]} 25. Rxf5 {[%clk 0:01:57]}  Kg7 {[%clk 0:01:51]} 26. Rf3 {[%clk 0:01:54]}  c5 {[%clk 0:01:50]} 27. dxc5 {[%clk 0:01:46]}  Rxc5 {[%clk 0:01:50]} 28. Qh4 {[%clk 0:01:41]}  Rg5 {[%clk 0:01:38]} 29. Raf1 {[%clk 0:01:42]}  Qd5 {[%clk 0:01:38]} 30. Kh1 {[%clk 0:01:32]}  Rf8 {[%clk 0:00:55]} 31. Qxa4 {[%clk 0:01:11]}  Qd2 {[%clk 0:00:56]} 32. R3f2 {[%clk 0:01:04]}  Qxe3 {[%clk 0:00:55]} 33. Qd7+ {[%clk 0:00:51]}  Rf7 {[%clk 0:00:54]} 34. Qd8 {[%clk 0:00:51]}  Rg6 {[%clk 0:00:47]} 35. Qd6 {[%clk 0:00:44]}  e5 {[%clk 0:00:45]} 36. Qb4 {[%clk 0:00:37]}  h5 {[%clk 0:00:41]} 37. h3 {[%clk 0:00:37]}  Rd7 {[%clk 0:00:37]} 38. Qh4 {[%clk 0:00:32]}  Qg5 {[%clk 0:00:34]} 39. Qb4 {[%clk 0:00:27]}  f5 {[%clk 0:00:29]} 40. Qb5 {[%clk 0:00:21]}  Re7 {[%clk 0:00:25]} 41. Qe2 {[%clk 0:00:16]}  f4 {[%clk 0:00:24]} 42. a4 {[%clk 0:00:16]}  Rf6 {[%clk 0:00:23]} 43. Qe4 {[%clk 0:00:16]}  Qg6 {[%clk 0:00:24]} 44. Re2 {[%clk 0:00:15]}  Qxe4 {[%clk 0:00:22]} 45. Rxe4 {[%clk 0:00:16]}  Kg6 {[%clk 0:00:23]} 46. b4 {[%clk 0:00:16]}  Kf5 {[%clk 0:00:23]} 47. Rfe1 {[%clk 0:00:16]}  Rd6 {[%clk 0:00:19]} 48. Kg1 {[%clk 0:00:15]}  Rd2 {[%clk 0:00:18]} 49. Kf1 {[%clk 0:00:07]}  Ra2 {[%clk 0:00:18]} 50. b5 {[%clk 0:00:06]}  h4 {[%clk 0:00:17]} 51. Kg1 {[%clk 0:00:03]}  Rc2 {[%clk 0:00:16]} 52. Kf1 {[%clk 0:00:03]}  Rc5 {[%clk 0:00:16]} 53. Rb4 {[%clk 0:00:00]}  Rd7 {[%clk 0:00:16]} 0-1

[Event "January 9 Late 2024"]
[Site "https://www.chess.com"]
[Date "2024.01.09"]
[Round "10"]
[White "Schnaider, Ilan"]
[Black "Lin, Bryan Enming"]
[Result "1-0"]
[Board "45"]
[TimeControl "180+1"]
[WhiteFideId "169013"]
[BlackFideId "30987121"]
[WhiteElo "2728"]
[BlackElo "2591"]
[WhiteTeam "ARG"]
[BlackTeam "USA"]
[WhiteClock "0:00:09"]
[BlackClock "0:00:08"]

1. e4 {[%clk 0:03:00]}  e5 {[%clk 0:02:59]} 2. Nf3 {[%clk 0:03:00]}  Nc6 {[%clk 0:02:59]} 3. Bc4 {[%clk 0:03:00]}  Nf6 {[%clk 0:02:59]} 4. d3 {[%clk 0:03:01]}  Bc5 {[%clk 0:02:59]} 5. c3 {[%clk 0:03:00]}  d6 {[%clk 0:02:59]} 6. O-O {[%clk 0:03:01]}  a5 {[%clk 0:02:59]} 7. Re1 {[%clk 0:02:57]}  O-O {[%clk 0:02:49]} 8. h3 {[%clk 0:02:57]}  h6 {[%clk 0:02:48]} 9. d4 {[%clk 0:02:57]}  Bb6 {[%clk 0:02:48]} 10. Bb5 {[%clk 0:02:15]}  Bd7 {[%clk 0:02:27]} 11. Na3 {[%clk 0:02:14]}  Re8 {[%clk 0:02:20]} 12. Nc4 {[%clk 0:01:54]}  exd4 {[%clk 0:01:48]} 13. Nxb6 {[%clk 0:01:54]}  cxb6 {[%clk 0:01:46]} 14. Nxd4 {[%clk 0:01:55]}  Rxe4 {[%clk 0:01:38]} 15. Rxe4 {[%clk 0:01:36]}  Nxe4 {[%clk 0:01:39]} 16. Nf3 {[%clk 0:01:05]}  Be6 {[%clk 0:01:35]} 17. Bf4 {[%clk 0:01:01]}  d5 {[%clk 0:01:34]} 18. Nd4 {[%clk 0:00:52]}  Bd7 {[%clk 0:01:04]} 19. Nf3 {[%clk 0:00:39]}  Be6 {[%clk 0:01:02]} 20. Qd3 {[%clk 0:00:38]}  Nd6 {[%clk 0:00:59]} 21. Ba4 {[%clk 0:00:34]}  Nc4 {[%clk 0:00:59]} 22. Bc2 {[%clk 0:00:17]}  f5 {[%clk 0:00:37]} 23. b3 {[%clk 0:00:17]}  Nd6 {[%clk 0:00:36]} 24. Re1 {[%clk 0:00:08]}  Ne4 {[%clk 0:00:34]} 25. Nd4 {[%clk 0:00:09]}  Nxd4 {[%clk 0:00:31]} 26. Qxd4 {[%clk 0:00:09]}  Rc8 {[%clk 0:00:16]} 27. f3 {[%clk 0:00:09]}  Nc5 {[%clk 0:00:14]} 28. b4 {[%clk 0:00:07]}  axb4 {[%clk 0:00:13]} 29. cxb4 {[%clk 0:00:08]}  Nd7 {[%clk 0:00:13]} 30. Rxe6 {[%clk 0:00:08]}  Rxc2 {[%clk 0:00:12]} 31. Qxd5 {[%clk 0:00:09]}  Kh7 {[%clk 0:00:08]} 32. Qxf5+ {[%clk 0:00:09]} 1-0